bitfinex/quotes_SOLUSD_20251013
["timestamp","ask_amount","ask_price","bid_price","bid_amount"]
[1760378640951,2728.58,204.71,204.65,3.97582922]
[1760378641161,2727.89,204.71,204.7,3.97582922]
[1760378641563,2727.89,204.71,204.63,20.8]
[1760378641769,2727.89,204.71,204.7,3.97582922]
[1760378642151,2727.89,204.71,204.66,20.8]
[1760378642348,2727.89,204.71,204.7,3.97582922]
[1760378642574,2727.89,204.71,204.7,7.95165844]
[1760378642575,2636.57658619,204.71,204.7,7.95165844]
[1760378642780,2636.57658619,204.71,204.64,4.6213745]
[1760378642986,2636.57658619,204.71,204.63,20.8]
[1760378643187,2636.57658619,204.71,204.69,3.97582922]
[1760378643489,0.69,204.7,204.58,4.86693006]
[1760378643665,0.69,204.7,204.65,3.97582922]
[1760378643861,0.69,204.69,204.65,3.97582922]
[1760378644168,0.69,204.68,204.65,3.97582922]
[1760378644346,2636.57658619,204.71,204.6,3.97582922]
[1760378644553,2636.57658619,204.71,204.7,3.97582922]
[1760378646052,2636.57658619,204.71,204.68,4.88559725]
[1760378646272,2636.57658619,204.71,204.66,17.10153424]
[1760378646478,2636.57658619,204.71,204.7,3.97582922]
[1760378647688,2551.03774816,204.71,204.7,7.95165844]
[1760378648007,2551.03774816,204.71,204.7,8.86102707]
[1760378648584,2551.03774816,204.71,204.7,4.88519785]
[1760378648786,2551.03774816,204.71,204.7,8.86102707]
[1760378649708,2551.03774816,204.71,204.7,4.88519785]
[1760378649907,2551.03774816,204.71,204.7,8.86102707]
[1760378650202,2551.03774816,204.71,204.7,44.15685629]
[1760378650203,2432.61733174,204.71,204.7,44.15685629]
[1760378650403,2432.61733174,204.71,204.7,29.66102707]
[1760378650782,2432.61733174,204.71,204.7,44.15685629]
[1760378651484,2407.38104545,204.71,204.7,44.15685629]
[1760378651779,2374.77994051,204.71,204.7,44.13685629]
[1760378652003,2198.55977435,204.71,204.7,28.94211968]
[1760378652181,2158.61822942,204.71,204.7,18.44211968]
[1760378652378,2158.61822942,204.71,204.7,24.96629046]
[1760378652597,2088.9040514,204.71,204.7,28.94211968]
[1760378652805,1924.7504836,204.71,204.7,28.94211968]
[1760378652996,1899.51911973,204.71,204.7,28.94211968]
[1760378653506,1899.51911973,204.71,204.7,45.76629046]
[1760378653799,1874.10073123,204.71,204.7,45.76629046]
[1760378654306,1812.25273445,204.71,204.7,35.26629046]
[1760378654508,1784.97218494,204.71,204.7,28.94211968]
[1760378654718,1784.97218494,204.71,204.7,14.46629046]
[1760378654885,1784.97218494,204.71,204.7,5.38519785]
[1760378655087,1784.97218494,204.71,204.7,9.36102707]
[1760378655384,1785.66218494,204.71,204.6,3.97582922]
[1760378655587,3.97582922,204.69,204.63,3.97582922]
[1760378655914,3.97582922,204.67,204.54,5.10526339]
[1760378656084,3.97582922,204.63,204.56,3.97582922]
[1760378656297,4.66582922,204.62,204.55,3.97582922]
[1760378656637,3.97582922,204.58,204.49,4.89021468]
[1760378656935,0.69,204.57,204.56,3.97582922]
[1760378657093,0.69,204.57,204.55,3.97582922]
[1760378657487,0.69,204.56,204.55,5.96397315]
[1760378657712,0.69,204.61,204.52,20.8]
[1760378657913,0.69,204.62,204.52,20.8]
[1760378658100,0.69,204.62,204.6,5.96397315]
[1760378658296,0.69,204.67,204.61,5.96397315]
[1760378658504,0.69,204.67,204.61,33.0179158]
[1760378658718,0.69,204.67,204.65,5.96397315]
[1760378658925,0.69,204.67,204.64,5.96397315]
[1760378659135,0.61064973,204.7,204.64,5.96397315]
[1760378659424,0.61064973,204.7,204.62,17.10487732]
[1760378659425,0.66,204.66,204.62,17.10487732]
[1760378659731,0.66,204.66,204.64,5.96397315]
[1760378659908,0.66,204.65,204.62,4.8871078]
[1760378660107,6.57462288,204.7,204.64,5.96397315]
[1760378660424,0.66,204.69,204.64,5.96397315]
[1760378660635,0.66,204.68,204.64,5.96397315]
[1760378660930,0.66,204.67,204.63,4.88677323]
[1760378661104,0.66,204.66,204.62,4.8870479]
[1760378661305,0.66,204.66,204.54,20.8]
[1760378661306,6.62397315,204.66,204.54,20.8]
[1760378661616,6.62397315,204.65,204.58,5.96397315]
[1760378661802,0.66,204.64,204.58,5.96397315]
[1760378662138,0.66,204.63,204.58,5.96397315]
[1760378662305,0.66,204.66,204.54,26.76397315]
[1760378662631,0.66,204.66,204.61,4.88734665]
[1760378662940,0.66,204.69,204.63,5.96397315]
[1760378663111,0.66,204.69,204.61,17.10571329]
[1760378663112,0.66,204.69,204.65,5.96397315]
[1760378663623,0.66,204.68,204.64,5.96397315]
[1760378664136,0.66,204.67,204.64,5.96397315]
[1760378664509,0.66,204.67,204.65,4.88639139]
[1760378664714,1784.97218494,204.71,204.65,10.85036454]
[1760378665320,1784.97218494,204.71,204.68,5.96397315]
[1760378665634,1784.97218494,204.71,204.65,17.10236988]
[1760378665806,1784.97218494,204.71,204.68,5.96397315]
[1760378666002,1785.63218494,204.71,204.65,17.10236988]
[1760378666328,1785.63218494,204.71,204.66,5.96397315]
[1760378666524,0.66,204.7,204.67,4.88591391]
[1760378667034,0.66,204.77,204.68,5.96397315]
[1760378667246,0.66,204.77,204.73,5.96397315]
[1760378667401,6.62397315,204.81,204.74,5.96397315]
[1760378667604,0.66,204.81,204.79,5.96397315]
[1760378667801,0.6101728,204.86,204.78,5.96397315]
[1760378668102,0.66,204.85,204.78,5.96397315]
[1760378668401,6.62397315,204.84,204.71,20.8]
[1760378668603,5.96397315,204.82,204.76,5.96397315]
[1760378668811,7.23423531,204.83,204.76,10.84771022]
[1760378669017,5.96397315,204.81,204.73,4.884482]
[1760378669230,5.96397315,204.81,204.74,5.96397315]
[1760378669423,5.96397315,204.81,204.75,5.96397315]
[1760378669726,0.66,204.85,204.79,5.96397315]
[1760378670230,0.66,204.85,204.76,20.8]
[1760378670231,6.62397315,204.85,204.76,20.8]
[1760378670410,0.66,204.85,204.79,5.96397315]
[1760378670830,0.66,204.84,204.78,5.96397315]
[1760378671018,6.62397315,204.84,204.78,5.96397315]
[1760378671327,0.66,204.84,204.79,5.96397315]
[1760378671527,5.96397315,204.85,204.77,4.88352786]
[1760378671734,0.66,204.83,204.77,10.84750101]
[1760378672025,0.66,204.83,204.78,5.96397315]
[1760378672226,0.66,204.83,204.79,5.96397315]
[1760378672431,0.66,204.87,204.82,5.96397315]
[1760378672748,0.66,204.93,204.86,5.96397315]
[1760378672905,0.60993461,204.94,204.83,5.96397315]
[1760378672906,5.96397315,204.9,204.83,5.96397315]
[1760378673103,0.66,204.89,204.83,5.96397315]
[1760378673302,0.66,204.89,204.79,24.76115924]
[1760378673303,5.96397315,204.88,204.79,20.8]
[1760378673510,5.96397315,204.85,204.74,35.17773057]
[1760378673718,5.96397315,204.86,204.79,5.96397315]
[1760378673927,1.27014301,204.87,204.8,5.96397315]
[1760378674225,1.27014301,204.87,204.81,5.96397315]
[1760378674407,1.27014301,204.87,204.75,0.5]
[1760378674607,1.27014301,204.87,204.81,5.96397315]
[1760378675027,7.23411616,204.87,204.81,5.96397315]
[1760378675326,7.23411616,204.87,204.83,5.96397315]
[1760378675327,1.27014301,204.87,204.83,5.96397315]
[1760378675623,1.27014301,204.87,204.82,5.96397315]
[1760378676016,0.61014301,204.87,204.76,17.59318226]
[1760378676329,10.87647521,204.92,204.76,17.59318226]
[1760378676330,0.66,204.92,204.86,5.96397315]
[1760378676521,0.66,204.97,204.9,5.96397315]
[1760378676725,19.99999999,205.12,204.9,5.96397315]
[1760378676726,0.60948851,205.09,204.94,5.96397315]
[1760378676934,0.60948851,205.09,204.95,5.96397315]
[1760378676935,5.96397315,205.01,204.95,5.96397315]
[1760378677138,5.96397315,204.98,204.91,5.96397315]
[1760378677438,0.66,204.98,204.93,5.96397315]
[1760378677607,0.66,204.98,204.9,4.88039435]
[1760378677608,7.23366976,205.02,204.95,5.96397315]
[1760378677811,12.14617182,205.02,204.96,5.96397315]
[1760378678021,5.96397315,205.06,204.99,5.96397315]
[1760378678236,0.66,205.06,205.03,5.96397315]
[1760378678431,0.66,205.1,205.03,10.84130817]
[1760378680725,0.1,205.04,205.03,10.84130817]
[1760378681031,0.1,205.04,205.03,11.34130817]
[1760378681239,0.1,205.04,205.03,10.84130817]
[1760378681623,0.1,205.04,205.03,11.34130817]
[1760378681928,0.1,205.14,205.06,20.8]
[1760378682107,0.70933996,205.14,205.1,5.96397315]
[1760378682308,0.66,205.13,205.06,31.26]
[1760378682508,0.66,205.13,205.09,5.96397315]
[1760378682710,7.23337252,205.12,205.04,5.96397315]
[1760378682937,7.23337252,205.12,205.05,5.96397315]
[1760378683107,1.26939937,205.12,205.07,5.96397315]
[1760378683308,0.66,205.11,205.07,5.96397315]
[1760378683507,0.66,205.1,205.06,5.96397315]
[1760378683807,0.60939937,205.12,205.02,20.8]
[1760378683808,0.60939937,205.12,205.07,5.96397315]
[1760378684135,0.66,205.11,205.05,5.96397315]
[1760378684643,6.62397315,205.11,205.05,5.96397315]
[1760378684854,6.62397315,205.11,205.03,4.87717756]
[1760378684855,5.96397315,205.06,204.95,0.5]
[1760378685128,5.96397315,204.99,204.92,5.96397315]
[1760378685433,5.96397315,204.96,204.9,5.96397315]
[1760378685733,5.96397315,204.91,204.84,5.96397315]
[1760378685937,7.233878,204.95,204.89,5.96397315]
[1760378686129,5.96397315,204.94,204.87,5.96397315]
[1760378686430,5.96397315,204.94,204.78,12.20792572]
[1760378686431,16.84044836,204.91,204.84,5.96397315]
[1760378686735,20.8,205.02,204.89,5.96397315]
[1760378686736,0.66,204.95,204.89,5.96397315]
[1760378686917,0.66,204.95,204.9,5.96397315]
[1760378687124,0.66,204.94,204.9,5.96397315]
[1760378687319,0.66,204.94,204.84,10.94]
[1760378687518,0.66,204.94,204.84,10.44]
[1760378687730,0.66,204.94,204.9,5.96397315]
[1760378688031,0.72,204.99,204.93,5.96397315]
[1760378688236,0.72,204.99,204.87,20.8]
[1760378688237,0.72,204.99,204.95,5.96397315]
[1760378688420,11.4862908,204.98,204.93,5.96397315]
[1760378688617,11.4862908,204.98,204.87,21.3]
[1760378688618,0.72,204.97,204.92,5.96397315]
[1760378688816,4.87803985,205.01,204.96,5.96397315]
[1760378688817,0.72,205.01,204.96,5.96397315]
[1760378689016,0.60966687,205.03,204.97,5.96397315]
[1760378689017,0.72,205.0,204.97,5.96397315]
[1760378689233,0.67,205.05,204.99,5.96397315]
[1760378689537,0.67,205.05,205.01,5.96397315]
[1760378689838,0.67,205.05,205.0,5.96397315]
[1760378690136,0.67,205.04,205.0,5.96397315]
[1760378690731,10.87647521,205.02,204.93,20.8]
[1760378691031,0.60972635,205.01,204.96,5.96397315]
[1760378691232,0.67,205.0,204.96,5.96397315]
[1760378691442,0.60972635,205.01,204.96,5.96397315]
[1760378691616,1.27972635,205.01,204.96,5.96397315]
[1760378691811,0.60972635,205.01,204.96,5.96397315]
[1760378692017,0.67,205.0,204.95,5.96397315]
[1760378692217,0.60972635,205.01,204.96,5.96397315]
[1760378692718,0.60960741,205.05,205.0,5.96397315]
[1760378692917,0.67,205.04,205.0,5.96397315]
[1760378693540,6.57358056,205.05,204.94,20.8]
[1760378693741,6.57358056,205.05,204.93,21.3]
[1760378693742,0.67,205.03,204.97,5.96397315]
[1760378693943,0.60948851,205.09,205.02,5.96397315]
[1760378694147,0.60948851,205.09,205.04,5.96397315]
[1760378694329,0.67,205.08,205.04,5.96397315]
[1760378694529,1.27954795,205.07,204.97,4.87855092]
[1760378694739,0.6094588,205.1,205.04,5.96397315]
[1760378694947,0.6094588,205.1,204.98,0.5]
[1760378694948,6.63397315,205.09,204.98,0.5]
[1760378695243,6.57349138,205.08,205.02,5.96397315]
[1760378695453,6.57349138,205.08,205.01,5.96397315]
[1760378695621,0.60951823,205.08,205.02,5.96397315]
[1760378696023,16.84044836,205.07,204.94,12.69839142]
[1760378696324,6.57355083,205.06,204.99,5.96397315]
[1760378696523,1.27954795,205.07,205.01,5.96397315]
[1760378696969,0.1,205.14,205.06,5.96397315]
[1760378697251,5.96397315,205.1,205.03,5.96397315]
[1760378697454,5.96397315,205.08,205.01,5.96397315]
[1760378697628,0.60954795,205.07,205.01,5.96397315]
[1760378697834,0.67,205.1,205.03,5.96397315]
[1760378697835,7.24343195,205.1,205.03,5.96397315]
[1760378698150,7.24343195,205.1,205.02,5.96397315]
[1760378698151,5.96397315,205.08,205.02,5.96397315]
[1760378698348,5.96397315,205.09,205.02,5.96397315]
[1760378698653,5.96397315,205.05,204.98,5.96397315]
[1760378698841,6.57361029,205.04,204.97,5.96397315]
[1760378699035,5.96397315,205.02,204.96,4.87900078]
[1760378699356,5.96397315,205.03,204.96,10.84297393]
[1760378699540,0.60963714,205.04,204.98,5.96397315]
[1760378699751,6.57361029,205.04,204.97,5.96397315]
[1760378699944,5.96397315,205.02,204.95,5.96397315]
[1760378700145,0.60972635,205.01,204.95,10.8431872]
[1760378700434,5.96397315,205.01,204.94,5.96397315]
[1760378700642,5.96397315,204.99,204.92,5.96397315]
[1760378700858,5.96397315,204.99,204.91,4.8801913]
[1760378701048,5.96397315,204.96,204.87,0.5]
[1760378701264,5.96397315,204.96,204.71,19.99999999]
[1760378701265,5.96397315,204.9,204.83,5.96397315]
[1760378701441,0.67,204.92,204.86,5.96397315]
[1760378701751,0.67,204.94,204.86,5.96397315]
[1760378701949,0.67,205.0,204.93,5.96397315]
[1760378702258,0.67,205.04,204.98,5.96397315]
[1760378702447,0.60966687,205.03,204.98,5.96397315]
[1760378702650,0.67,205.02,204.91,0.5]
[1760378702868,10.87647521,205.06,205.0,5.96397315]
[1760378702869,1.27957768,205.06,205.0,5.96397315]
[1760378703053,7.24355083,205.06,204.99,5.96397315]
[1760378703458,1.27957768,205.06,205.0,5.96397315]
[1760378703755,1.27948851,205.09,205.02,5.96397315]
[1760378703954,0.60954795,205.07,205.02,5.96397315]
[1760378704161,0.67,205.06,205.02,5.96397315]
[1760378704467,0.67,205.06,205.0,4.87788663]
[1760378704671,5.96397315,205.05,204.98,4.87834523]
[1760378704976,5.96397315,205.05,204.81,24.41273437]
[1760378704977,5.96397315,204.99,204.89,5.96397315]
[1760378705150,5.96397315,204.96,204.88,5.96397315]
[1760378705464,10.87647521,205.04,204.76,41.51201406]
[1760378705465,5.96397315,204.91,204.76,41.51201406]
[1760378705656,10.87647521,204.94,204.82,5.96397315]
[1760378705657,1.28005368,204.9,204.82,5.96397315]
[1760378705859,5.96397315,204.9,204.79,20.8]
[1760378706164,5.96397315,204.9,204.83,5.96397315]
[1760378706378,5.96397315,204.9,204.78,0.5]
[1760378706572,1.28008345,204.89,204.84,5.96397315]
[1760378706767,0.61008345,204.89,204.84,5.96397315]
[1760378707079,6.63397315,204.88,204.81,5.96397315]
[1760378707280,4.88021221,204.91,204.72,17.09652207]
[1760378707281,5.96397315,204.85,204.72,17.09652207]
[1760378707588,5.96397315,204.8,204.73,5.96397315]
[1760378707782,5.96397315,204.78,204.71,5.96397315]
[1760378708076,11.54647521,204.79,204.69,4.88539662]
[1760378708286,17.45088934,204.77,204.7,5.96397315]
[1760378708483,0.61044098,204.77,204.72,5.96397315]
[1760378708784,0.61020258,204.85,204.73,0.5]
[1760378708981,5.96397315,204.83,204.73,20.8]
[1760378709285,0.61029196,204.82,204.77,5.96397315]
[1760378709579,0.67,204.81,204.75,5.96397315]
[1760378709787,0.61035156,204.8,204.75,5.96397315]
[1760378709948,0.67,204.79,204.74,5.96397315]
[1760378710155,1.28041117,204.78,204.7,37.89812975]
[1760378710451,1.28041117,204.78,204.73,5.96397315]
[1760378711451,0.61035156,204.8,204.77,5.96397315]
[1760378711766,0.67,204.79,204.74,5.96397315]
[1760378711972,1.28041117,204.78,204.7,25.68513513]
[1760378712153,1.28041117,204.78,204.73,5.96397315]
[1760378712362,0.67,204.77,204.72,5.96397315]
[1760378712573,0.61047079,204.76,204.72,5.96397315]
[1760378713076,0.67,204.75,204.7,5.96397315]
[1760378713380,0.61053042,204.74,204.71,5.96397315]
[1760378713675,0.61044098,204.77,204.73,5.96397315]
[1760378713882,10.87647521,204.8,204.74,5.96397315]
[1760378714183,6.57435451,204.79,204.73,5.96397315]
[1760378714670,0.61038136,204.79,204.76,5.96397315]
[1760378714865,6.63397315,204.82,204.7,0.5]
[1760378714866,0.61032176,204.81,204.71,12.211955]
[1760378715255,1772.260229,204.7,204.69,4.88543651]
[1760378716479,1738.47568291,204.7,204.69,10.84940966]
[1760378716808,1738.47568291,204.7,204.69,11.34940966]
[1760378717311,24.279661,204.69,204.41,38.53173379]
[1760378717484,24.68600459,204.67,204.41,0.00149358]
[1760378717795,1738.47568291,204.7,204.59,0.00149101]
[1760378717796,24.62575145,204.62,204.59,0.00149101]
[1760378718196,5.96248139,204.63,204.4,23.8558926]
[1760378718197,26.30837555,204.41,204.4,23.8558926]
[1760378718374,24.03082785,204.6,204.44,4.884]
[1760378718573,24.02438957,204.62,204.46,19.534]
[1760378718786,24.52707107,204.6,204.4,18.8132077]
[1760378719004,24.52707107,204.6,204.4,18.70392354]
[1760378719375,24.52707107,204.6,204.41,4.884]
[1760378719603,24.52707107,204.6,204.53,3.97482431]
[1760378720011,24.52707107,204.6,204.4,3.89024615]
[1760378720175,24.98476357,204.56,204.47,3.97482431]
[1760378720375,19.99999999,204.57,204.43,3.97482431]
[1760378720376,24.25307364,204.54,204.43,3.97482431]
[1760378720704,24.04822799,204.5,204.4,3.89024615]
[1760378720887,24.51178721,204.48,204.4,7.86507046]
[1760378721287,44.5117872,204.48,204.38,3.97482431]
[1760378721580,24.19051728,204.47,204.4,20.8]
[1760378721783,34.69364589,204.46,204.45,3.97482431]
[1760378722376,24.25307364,204.54,204.44,3.97482431]
[1760378722579,24.51131718,204.52,204.44,3.97482431]
[1760378722774,24.25307364,204.54,204.44,3.97482431]
[1760378722979,24.51131718,204.52,204.44,3.97482431]
[1760378723282,24.51131718,204.52,204.4,20.8]
[1760378723283,24.04822799,204.5,204.46,3.97482431]
[1760378723588,0.67,204.6,204.39,4.884]
[1760378723589,35.08015648,204.49,204.39,4.884]
[1760378723783,34.89178721,204.48,204.47,3.97482431]
[1760378724000,24.51178721,204.48,204.47,3.97482431]
[1760378724307,24.49699943,204.65,204.39,10.87647521]
[1760378724489,24.02666812,204.67,204.38,2.55216331]
[1760378724693,24.49699943,204.65,204.39,4.884]
[1760378725107,24.22460478,204.63,204.38,6.53640438]
[1760378725289,24.50424838,204.61,204.54,5e-07]
[1760378725495,24.19051728,204.47,204.39,20.8]
[1760378725702,44.52001197,204.67,204.46,7.94964862]
[1760378725902,24.88068489,204.62,204.48,3.97482431]
[1760378726282,24.90815187,204.6,204.49,10.87647521]
[1760378726787,24.90815187,204.6,204.48,3.97482431]
[1760378726990,24.75623395,204.58,204.38,21.15112132]
[1760378727202,55.63270915,204.58,204.48,3.97482431]
[1760378727379,35.63270916,204.58,204.5,3.97482431]
[1760378727579,24.36015268,204.56,204.5,3.97482431]
[1760378727781,28.50637557,204.54,204.44,3.97482431]
[1760378728100,28.72626482,204.5,204.4,3.97482431]
[1760378728403,24.97895398,204.48,204.38,3.97482431]
[1760378728611,24.7596678,204.46,204.38,3.97482431]
[1760378728802,24.6811771,204.44,204.38,3.97482431]
[1760378729005,24.53155126,204.54,204.42,3.97482431]
[1760378729196,0.67,204.61,204.46,3.97482431]
[1760378729197,24.83775607,204.52,204.46,3.97482431]
[1760378729393,24.83775607,204.52,204.36,14.85129952]
[1760378729394,24.90815187,204.6,204.5,3.97482431]
[1760378729606,7.9486544,204.63,204.5,3.97482431]
[1760378729607,24.75623395,204.58,204.5,3.97482431]
[1760378729795,24.36015268,204.56,204.48,3.97482431]
[1760378729992,3.97383009,204.63,204.38,3.83740752]
[1760378729993,24.91702965,204.59,204.38,3.83740752]
[1760378730186,24.43062344,204.57,204.55,3.97482431]
[1760378730386,34.52852017,204.56,204.55,3.97482431]
[1760378730988,24.01926043,204.61,204.55,3.97482431]
[1760378731192,24.35680408,204.62,204.39,17.2022563]
[1760378731510,24.71006019,204.58,204.48,3.97482431]
[1760378732010,24.71006019,204.58,204.49,10.87647521]
[1760378732184,24.71006019,204.58,204.48,3.97482431]
[1760378732809,24.71006019,204.58,204.57,0.00099372]
[1760378735297,24.71006019,204.58,204.48,6.52655272]
[1760378735512,24.30277488,204.56,204.48,2.55172841]
[1760378735716,24.30277488,204.56,204.54,3.97482431]
[1760378735918,24.30277488,204.56,204.55,3.97482431]
[1760378736217,34.66277488,204.56,204.55,3.97482431]
[1760378736613,24.30277488,204.56,204.55,3.97482431]
[1760378737213,24.56699141,204.43,204.39,10.87647521]
[1760378737412,35.27643201,204.42,204.39,150.87647521]
[1760378737617,3.97482381,204.44,204.39,150.87647521]
[1760378737618,24.93355439,204.43,204.39,150.87647521]
[1760378737795,24.93355439,204.43,204.4,2.55212704]
[1760378738119,24.93355439,204.43,204.42,20.8]
[1760378738496,24.71590652,204.43,204.38,3.8292609]
[1760378738818,34.72233166,204.42,204.25,4.884]
[1760378739004,24.44132329,204.43,204.35,4.1950258]
[1760378739197,34.72233166,204.42,204.35,0.24468]
[1760378739397,24.44132329,204.43,204.35,4.07354904]
[1760378739600,24.44132329,204.43,204.42,3.97482431]
[1760378739800,34.78132329,204.43,204.42,3.97482431]
[1760378740192,24.44132329,204.43,204.42,3.97482431]
[1760378740399,34.78132329,204.43,204.42,3.97482431]
[1760378740701,24.44132329,204.43,204.42,3.97482431]
[1760378740909,34.78132329,204.43,204.42,3.97482431]
[1760378741101,24.44132329,204.43,204.42,3.97482431]
[1760378741307,34.78132329,204.43,204.42,3.97482431]
[1760378741508,24.44132329,204.43,204.42,3.97482431]
[1760378742208,34.78132329,204.43,204.42,3.97482431]
[1760378743019,24.44132329,204.43,204.42,7.94964862]
[1760378743603,24.85066354,204.46,204.42,7.94964862]
[1760378743810,24.85066354,204.46,204.45,7.94964862]
[1760378744023,35.19066354,204.46,204.45,7.94964862]
[1760378744399,24.40664946,204.52,204.45,7.94964862]
[1760378744726,34.74664946,204.52,204.51,3.97482431]
[1760378745019,25.07664946,204.52,204.51,3.25482431]
[1760378745221,25.07664946,204.52,204.51,3.97482431]
[1760378745538,24.19294651,204.48,204.36,8.85882431]
[1760378745825,34.62306672,204.47,204.46,3.97482431]
[1760378746002,35.29306672,204.47,204.46,3.97482431]
[1760378746518,46.16954193,204.47,204.45,3.97482431]
[1760378746710,35.0784807,204.46,204.36,3.97482431]
[1760378746913,24.26776615,204.44,204.43,3.97482431]
[1760378747217,45.48424136,204.44,204.43,3.97482431]
[1760378747395,46.15424136,204.44,204.43,3.97482431]
[1760378747594,46.15424136,204.44,204.42,3.97482431]
[1760378747818,45.59944715,204.43,204.42,3.97482431]
[1760378748005,45.59944715,204.43,204.39,20.8]
[1760378748217,45.59944715,204.43,204.4,3.97482431]
[1760378748218,21.89647521,204.42,204.4,3.97482431]
[1760378748402,24.60137896,204.45,204.41,3.97482431]
[1760378748605,24.0684807,204.46,204.44,3.97482431]
[1760378748797,54.9449559,204.46,204.45,3.97482431]
[1760378749119,24.0684807,204.46,204.45,3.97482431]
[1760378749699,24.7484807,204.46,204.45,3.97482431]
[1760378750118,35.62495591,204.46,204.45,3.97482431]
[1760378750424,44.26776614,204.44,204.43,3.97482431]
[1760378750618,55.26776614,204.44,204.43,3.97482431]
[1760378751112,44.94776614,204.44,204.43,3.97482431]
[1760378751318,24.87477347,204.46,204.43,3.97482431]
[1760378751522,24.87477347,204.46,204.45,3.97482431]
[1760378752104,24.87477347,204.46,204.36,3.97482431]
[1760378752305,24.87477347,204.46,204.45,3.97482431]
[1760378752822,24.05528604,204.45,204.35,0.24468]
[1760378753033,24.11304684,204.43,204.36,3.97482431]
[1760378753328,34.57273142,204.42,204.36,3.97482431]
[1760378753525,24.25273142,204.42,204.36,3.97482431]
[1760378753731,10.32,204.41,204.35,0.24468]
[1760378754032,10.32,204.41,204.36,20.8]
[1760378754033,19.99999999,204.38,204.36,20.8]
[1760378754207,10.32,204.37,204.36,20.8]
[1760378754408,30.8764752,204.4,204.36,3.97482431]
[1760378754724,30.8764752,204.4,204.39,3.97482431]
[1760378754725,10.32,204.4,204.39,3.97482431]
[1760378755025,10.32,204.4,204.35,0.24468]
[1760378755210,10.87647521,204.38,204.36,20.8]
[1760378755411,19.99999999,204.41,204.37,3.97482431]
[1760378755729,30.8764752,204.41,204.4,3.97482431]
[1760378756112,19.99999999,204.41,204.4,3.97482431]
[1760378756301,55.27926683,204.44,204.4,3.97482431]
[1760378756506,24.25273142,204.42,204.36,24.77482431]
[1760378756719,24.25273142,204.42,204.36,20.8]
[1760378756720,21.19647521,204.41,204.36,20.8]
[1760378757032,10.32,204.4,204.36,20.8]
[1760378757201,19.99999999,204.41,204.36,20.8]
[1760378757401,10.32,204.41,204.36,20.8]
[1760378757623,10.32,204.41,204.4,3.97482431]
[1760378757835,24.25273142,204.42,204.4,3.97482431]
[1760378758010,10.32,204.41,204.36,24.77482431]
[1760378758214,19.99999999,204.41,204.36,24.77482431]
[1760378758839,24.87477347,204.46,204.36,24.77482431]
[1760378759004,24.77377374,204.47,204.36,24.77482431]
[1760378759202,35.17477347,204.46,204.36,24.77482431]
[1760378759404,24.77377374,204.47,204.36,24.77482431]
[1760378759717,34.44312093,204.48,204.39,20.8]
[1760378760334,24.14312093,204.48,204.47,3.97482431]
[1760378760530,24.6270459,204.53,204.47,3.97482531]
[1760378760838,26.69552333,204.48,204.38,0.7]
[1760378761017,26.69552333,204.48,204.37,4.884]
[1760378761332,10.87647521,204.43,204.32,0.7]
[1760378761629,19.99999999,204.41,204.26,3.25392576]
[1760378761952,19.99999999,204.4,204.26,3.25392576]
[1760378762231,24.11304684,204.43,204.31,0.7]
[1760378762434,24.05528604,204.45,204.31,0.7]
[1760378762615,24.87477347,204.46,204.34,20.8]
[1760378762817,44.87477346,204.46,204.34,20.8]
[1760378763042,24.87477347,204.46,204.36,20.8]
[1760378763422,24.87477347,204.46,204.37,0.7]
[1760378763728,24.4662137,204.46,204.41,20.8]
[1760378763938,2.55296478,204.47,204.4,10.3]
[1760378764241,10.3,204.59,204.43,20.8]
[1760378764242,0.68,204.59,204.43,20.8]
[1760378764431,19.99999999,204.58,204.43,20.8]
[1760378764839,19.99999999,204.58,204.44,10.3]
[1760378765038,19.99999999,204.64,204.44,35.45]
[1760378765341,20.67999999,204.64,204.48,20.8]
[1760378765831,0.68,204.64,204.48,20.8]
[1760378766013,19.99999999,204.63,204.48,20.8]
[1760378766210,19.99999999,204.6,204.48,20.8]
[1760378766426,0.68,204.59,204.44,20.8]
[1760378766632,0.68,204.59,204.48,20.8]
[1760378767056,19.99999999,204.6,204.48,20.8]
[1760378767347,10.87647521,204.64,204.48,20.8]
[1760378767944,0.68,204.65,204.48,20.8]
[1760378768112,0.68,204.65,204.52,20.8]
[1760378768319,20.67999999,204.65,204.56,20.8]
[1760378768625,0.68,204.65,204.56,20.8]
[1760378769031,20.67999999,204.65,204.56,20.8]
[1760378769447,20.67999999,204.65,204.46,19.534]
[1760378769448,20.67999999,204.65,204.5,4.884]
[1760378769641,20.67999999,204.65,204.54,20.8]